fUST/lending_fUST_20250223
["ID","MTS","AMOUNT","RATE_DAILY","PERIOD"]
[354127950,1740264642276,-527.12,0.00014109,2]
[354127951,1740264642286,-500.0,0.00014109,2]
[354127952,1740264642295,-500.0,0.00014109,2]
[354127953,1740264642305,-1945.46,0.00014109,2]
[354127954,1740264642315,-500.0,0.00014109,2]
[354127955,1740264642324,-952.28,0.00014109,2]
[354127956,1740264642334,-500.0,0.00014109,2]
[354127957,1740264642344,-331.08,0.00014109,2]
[354127958,1740264642353,-530.0,0.00014109,2]
[354127959,1740264642363,-500.0,0.00014109,2]
[354127960,1740264642374,-522.48,0.00014109,2]
[354127961,1740264642383,-500.0,0.00014109,2]
[354127962,1740264642392,-517.16,0.00014109,2]
[354127963,1740264642402,-500.0,0.00014109,2]
[354127964,1740264642412,-193.44,0.00014109,2]
[354127965,1740264642422,-500.0,0.00014109,2]
[354127966,1740264642432,-979.81,0.00014109,2]
[354127967,1740264642442,-500.0,0.00014109,2]
[354127968,1740264642451,-500.0,0.00014109,2]
[354127969,1740264642461,-500.0,0.00014109,2]
[354127970,1740264642471,-555.95,0.00014109,2]
[354127971,1740264642480,-4758.59,0.00014109,2]
[354127972,1740264642490,-500.0,0.00014109,2]
[354127973,1740264642500,-500.0,0.00014109,2]
[354127974,1740264642511,-561.6,0.00014109,2]
[354127975,1740264642521,-500.0,0.00014109,2]
[354127976,1740264642531,-1627.62,0.00014109,2]
[354127977,1740264642540,-1580.41,0.00014109,2]
[354127978,1740264642550,-500.0,0.00014109,2]
[354127979,1740264642560,-12029.98,0.00014109,2]
[354127980,1740264642570,-3804.96,0.00014109,2]
[354127981,1740264642579,-1056.18,0.00014109,2]
[354127982,1740264642589,-610.09,0.00014109,2]
[354127983,1740264642598,-611.98,0.00014109,2]
[354127984,1740264642608,-500.0,0.00014109,2]
[354127985,1740264642618,-500.0,0.00014109,2]
[354127986,1740264642627,-500.0,0.00014109,2]
[354127987,1740264642637,-500.0,0.00014109,2]
[354127988,1740264642646,-500.0,0.0001419,2]
[354127989,1740264642656,-169.27870634,0.0001419,2]
[354127990,1740264642665,-500.0,0.0001419,2]
[354127991,1740264642674,-173.18299687,0.0001419,2]
[354127992,1740264642683,-500.0,0.0001419,2]
[354127993,1740264642694,-289.52,0.00014191,2]
[354127994,1740264642704,-269.64,0.00014191,2]
[354127995,1740264642714,-500.0,0.00014191,2]
[354127996,1740264642724,-500.0,0.00014191,2]
[354127997,1740264642734,-500.0,0.00014191,2]
[354127998,1740264642743,-500.0,0.00014191,2]
[354127999,1740264642753,-500.0,0.00014191,2]
[354128000,1740264642827,-500.0,0.00014191,2]
[354128001,1740264642845,-500.0,0.00014191,2]
[354128002,1740264642855,-500.0,0.00014191,2]
[354128003,1740264642865,-500.0,0.00014191,2]
[354128005,1740264642874,-510.2,0.00014191,2]
[354128006,1740264642883,-626.8,0.00014191,2]
[354128008,1740264642893,-500.0,0.00014191,2]
[354128009,1740264642902,-500.0,0.00014191,2]
[354128010,1740264642911,-500.0,0.00014191,2]
[354128011,1740264642921,-360.32,0.00014191,2]
[354128012,1740264642931,-424.68,0.00014191,2]
[354128013,1740264642941,-252.12,0.00014191,2]
[354128014,1740264642950,-500.0,0.00014191,2]
[354128015,1740264642959,-713.37,0.00014191,2]
[354128016,1740264642970,-500.0,0.00014191,2]
[354128017,1740264642980,-978.73,0.00014191,2]
[354128018,1740264642990,-500.0,0.00014191,2]
[354128020,1740264643000,-500.0,0.00014191,2]
[354128022,1740264643010,-1945.46,0.00014191,2]
[354128024,1740264643019,-500.0,0.00014191,2]
[354128025,1740264643029,-952.28,0.00014191,2]
[354128028,1740264643044,-500.0,0.00014191,2]
[354128031,1740264643059,-530.0,0.00014191,2]
[354128033,1740264643069,-500.0,0.00014191,2]
[354128035,1740264643079,-500.0,0.00014191,2]
[354128037,1740264643089,-517.16,0.00014191,2]
[354128039,1740264643098,-500.0,0.00014191,2]
[354128041,1740264643109,-500.0,0.00014191,2]
[354128043,1740264643118,-979.81,0.00014191,2]
[354128045,1740264643128,-500.0,0.00014191,2]
[354128047,1740264643139,-500.0,0.00014191,2]
[354128049,1740264643149,-372.16,0.00014191,2]
[354128051,1740264643159,-555.95,0.00014191,2]
[354128053,1740264643169,-4758.59,0.00014191,2]
[354128055,1740264643180,-260.52,0.00014191,2]
[354128058,1740264643191,-500.0,0.00014191,2]
[354128060,1740264643200,-561.6,0.00014191,2]
[354128062,1740264643210,-151.76,0.00014191,2]
[354128064,1740264643220,-1627.62,0.00014191,2]
[354128066,1740264643230,-1580.41,0.00014191,2]
[354128068,1740264643240,-500.0,0.00014191,2]
[354128070,1740264643250,-12029.98,0.00014191,2]
[354128072,1740264643260,-3804.96,0.00014191,2]
[354128074,1740264643270,-1056.18,0.00014191,2]
[354128076,1740264643280,-610.09,0.00014191,2]
[354128079,1740264643290,-611.98,0.00014191,2]
[354128081,1740264643299,-500.0,0.00014191,2]
[354128083,1740264643310,-500.0,0.00014191,2]
[354128085,1740264643320,-500.0,0.00014191,2]
[354128087,1740264643330,-500.0,0.00014191,2]
[354128089,1740264643340,-12924.89674434,0.0001424,2]
[354128091,1740264643349,-522.0,0.00014273,2]
[354128093,1740264643359,-525.08,0.00014273,2]
[354128095,1740264643369,-355.48,0.00014273,2]
[354128097,1740264643379,-500.0,0.00014273,2]
[354128099,1740264643389,-500.0,0.00014273,2]
[354128101,1740264643400,-271.48,0.00014273,2]
[354128103,1740264643410,-500.0,0.00014273,2]
[354128105,1740264643421,-279.2,0.00014273,2]
[354128107,1740264643431,-414.6,0.00014273,2]
[354128109,1740264643441,-500.0,0.00014273,2]
[354128111,1740264643450,-500.0,0.00014273,2]
[354128113,1740264643460,-500.0,0.00014273,2]
[354128115,1740264643470,-500.0,0.00014273,2]
[354128117,1740264643481,-713.37,0.00014273,2]
[354128120,1740264643491,-978.73,0.00014273,2]
[354128122,1740264643503,-500.0,0.00014273,2]
[354128124,1740264643514,-1945.46,0.00014273,2]
[354128126,1740264643524,-500.0,0.00014273,2]
[354128128,1740264643534,-952.28,0.00014273,2]
[354128130,1740264643543,-530.0,0.00014273,2]
[354128132,1740264643554,-500.0,0.00014273,2]
[354128134,1740264643563,-500.0,0.00014273,2]
[354128136,1740264643573,-517.16,0.00014273,2]
[354128138,1740264643585,-500.0,0.00014273,2]
[354128140,1740264643597,-500.0,0.00014273,2]
[354128142,1740264643606,-979.81,0.00014273,2]
[354128144,1740264643616,-500.0,0.00014273,2]
[354128146,1740264643626,-500.0,0.00014273,2]
[354128148,1740264643636,-555.95,0.00014273,2]
[354128150,1740264643645,-4758.59,0.00014273,2]
[354128152,1740264643656,-500.0,0.00014273,2]
[354128154,1740264643667,-561.6,0.00014273,2]
[354128156,1740264643676,-1627.62,0.00014273,2]
[354128158,1740264643686,-1580.41,0.00014273,2]
[354128160,1740264643696,-500.0,0.00014273,2]
[354128162,1740264643706,-12029.98,0.00014273,2]
[354128164,1740264643716,-3804.96,0.00014273,2]
[354128166,1740264643726,-1056.18,0.00014273,2]
[354128168,1740264643736,-610.09,0.00014273,2]
[354128170,1740264643746,-611.98,0.00014273,2]
[354128172,1740264643755,-500.0,0.00014273,2]
[354128175,1740264643765,-500.0,0.00014273,2]
[354128176,1740264643774,-500.0,0.00014273,2]
[354128179,1740264643784,-500.0,0.00014273,2]
[354128181,1740264643794,-1000.0,0.00014321,2]
[354128183,1740264643803,-500.0,0.00014356,2]
[354128185,1740264643813,-500.0,0.00014356,2]
[354128187,1740264643822,-500.0,0.00014356,2]
[354128189,1740264643832,-247.38,0.00014356,2]
[354128191,1740264643841,-500.0,0.00014356,2]
[354128193,1740264643851,-467.32,0.00014356,2]
[354128195,1740264643861,-500.0,0.00014356,2]
[354128197,1740264643871,-713.37,0.00014356,2]
[354128199,1740264643880,-978.73,0.00014356,2]
[354128201,1740264643890,-500.0,0.00014356,2]
[354128203,1740264643900,-1945.46,0.00014356,2]
[354128205,1740264643909,-500.0,0.00014356,2]
[354128207,1740264643918,-952.28,0.00014356,2]
[354128209,1740264643928,-530.0,0.00014356,2]
[354128211,1740264643937,-500.0,0.00014356,2]
[354128213,1740264643946,-500.0,0.00014356,2]
[354128215,1740264643955,-517.16,0.00014356,2]
[354128217,1740264643965,-500.0,0.00014356,2]
[354128219,1740264643975,-586.08,0.00014356,2]
[354128221,1740264643984,-979.81,0.00014356,2]
[354128223,1740264643994,-316.28,0.00014356,2]
[354128225,1740264644004,-500.0,0.00014356,2]
[354128227,1740264644013,-555.95,0.00014356,2]
[354128229,1740264644022,-4758.59,0.00014356,2]
[354128231,1740264644032,-500.0,0.00014356,2]
[354128233,1740264644042,-561.6,0.00014356,2]
[354128235,1740264644051,-1627.62,0.00014356,2]
[354128237,1740264644061,-1580.41,0.00014356,2]
[354128239,1740264644070,-500.0,0.00014356,2]
[354128241,1740264644080,-12029.98,0.00014356,2]
[354128243,1740264644089,-3804.96,0.00014356,2]
[354128245,1740264644099,-1056.18,0.00014356,2]
[354128247,1740264644108,-610.09,0.00014356,2]
[354128250,1740264644118,-611.98,0.00014356,2]
[354128252,1740264644128,-270.08,0.00014356,2]
[354128254,1740264644137,-500.0,0.00014356,2]
[354128256,1740264644146,-500.0,0.00014356,2]
[354128258,1740264644155,-500.0,0.00014356,2]
[354128260,1740264644165,-301.0,0.00014438,2]
[354128262,1740264644174,-500.0,0.00014438,2]
[354128263,1740264644183,-500.0,0.00014438,2]
[354128265,1740264644194,-500.0,0.00014438,2]
[354128268,1740264644203,-500.0,0.00014438,2]
[354128270,1740264644213,-713.37,0.00014438,2]
[354128272,1740264644223,-978.73,0.00014438,2]
[354128274,1740264644232,-500.0,0.00014438,2]
[354128276,1740264644241,-1945.46,0.00014438,2]
[354128277,1740264644250,-500.0,0.00014438,2]
[354128280,1740264644260,-952.28,0.00014438,2]
[354128281,1740264644269,-530.0,0.00014438,2]
[354128283,1740264644278,-500.0,0.00014438,2]
[354128286,1740264644288,-500.0,0.00014438,2]
[354128287,1740264644297,-517.16,0.00014438,2]
[354128290,1740264644306,-500.0,0.00014438,2]
[354128291,1740264644316,-979.81,0.00014438,2]
[354128294,1740264644327,-500.0,0.00014438,2]
[354128296,1740264644336,-555.95,0.00014438,2]
[354128298,1740264644345,-4758.59,0.00014438,2]
[354128300,1740264644354,-500.0,0.00014438,2]
[354128302,1740264644364,-561.6,0.00014438,2]
[354128304,1740264644373,-1627.62,0.00014438,2]
[354128306,1740264644382,-1580.41,0.00014438,2]
[354128308,1740264644395,-500.0,0.00014438,2]
[354128310,1740264644404,-12029.98,0.00014438,2]
[354128312,1740264644415,-1056.18,0.00014438,2]
[354128314,1740264644424,-3804.96,0.00014438,2]
[354128316,1740264644433,-610.09,0.00014438,2]
[354128318,1740264644442,-611.98,0.00014438,2]
[354128320,1740264644452,-500.0,0.00014438,2]
[354128322,1740264644461,-500.0,0.00014438,2]
[354128324,1740264644470,-500.0,0.00014438,2]
[354128326,1740264644479,-900.0,0.00014438,2]
[354128328,1740264644489,-500.0,0.0001452,2]
[354128330,1740264644498,-500.0,0.0001452,2]
[354128331,1740264644511,-500.0,0.0001452,2]
[354128343,1740264644610,-500.0,0.0001452,2]
[354128345,1740264644620,-713.37,0.0001452,2]
[354128347,1740264644630,-978.73,0.0001452,2]
[354128349,1740264644640,-500.0,0.0001452,2]
[354128351,1740264644649,-1945.46,0.0001452,2]
[354128353,1740264644659,-151.08,0.0001452,2]
[354128355,1740264644668,-952.28,0.0001452,2]
[354128358,1740264644677,-530.0,0.0001452,2]
[354128360,1740264644687,-500.0,0.0001452,2]
[354128361,1740264644695,-500.0,0.0001452,2]
[354128364,1740264644705,-517.16,0.0001452,2]
[354128365,1740264644714,-500.0,0.0001452,2]
[354128367,1740264644725,-979.81,0.0001452,2]
[354128370,1740264644735,-500.0,0.0001452,2]
[354128372,1740264644744,-555.95,0.0001452,2]
[354128374,1740264644753,-4758.59,0.0001452,2]
[354128376,1740264644761,-500.0,0.0001452,2]
[354128378,1740264644770,-561.6,0.0001452,2]
[354128380,1740264644779,-1627.62,0.0001452,2]
[354128382,1740264644789,-1580.41,0.0001452,2]
[354128384,1740264644797,-500.0,0.0001452,2]
[354128386,1740264644807,-12029.98,0.0001452,2]
[354128388,1740264644816,-1056.18,0.0001452,2]
[354128390,1740264644825,-3804.96,0.0001452,2]
[354128392,1740264644835,-610.09,0.0001452,2]
[354128394,1740264644844,-611.98,0.0001452,2]
[354128396,1740264644853,-500.0,0.0001452,2]
[354128398,1740264644862,-500.0,0.0001452,2]
[354128400,1740264644871,-621.08,0.0001452,2]
[354128402,1740264644880,-152.56003057,0.00014584,2]
[354128404,1740264644889,-152.56003057,0.00014584,2]
[354128406,1740264644899,-152.56003057,0.00014584,2]
[354128408,1740264644908,-152.56003057,0.00014584,2]
[354128410,1740264644917,-152.56003057,0.00014584,2]
[354128412,1740264644927,-152.56003057,0.00014584,2]
[354128414,1740264644936,-152.56003057,0.00014584,2]
[354128416,1740264644946,-152.56003057,0.00014584,2]
[354128418,1740264644955,-152.56003057,0.00014584,2]
[354128420,1740264644964,-152.56003057,0.00014584,2]
[354128423,1740264644974,-152.56,0.00014584,2]
[354128425,1740264644983,-151.0,0.000146,2]
[354128426,1740264644992,-500.0,0.00014602,2]
[354128429,1740264645003,-356.6,0.00014602,2]
[354128431,1740264645012,-402.56,0.00014602,2]
[354128433,1740264645021,-500.0,0.00014602,2]
[354128435,1740264645031,-713.37,0.00014602,2]
[354128437,1740264645040,-978.73,0.00014602,2]
[354128439,1740264645049,-503.84,0.00014602,2]
[354128440,1740264645058,-1945.46,0.00014602,2]
[354128442,1740264645067,-952.28,0.00014602,2]
[354128444,1740264645076,-530.0,0.00014602,2]
[354128446,1740264645085,-500.0,0.00014602,2]
[354128448,1740264645096,-159.44,0.00014602,2]
[354128449,1740264645111,-517.16,0.00014602,2]
[354128451,1740264645120,-500.0,0.00014602,2]
[354128452,1740264645129,-979.81,0.00014602,2]
[354128453,1740264645139,-500.0,0.00014602,2]
[354128454,1740264645148,-555.95,0.00014602,2]
[354128455,1740264645157,-4758.59,0.00014602,2]
[354128456,1740264645166,-500.0,0.00014602,2]
[354128457,1740264645174,-561.6,0.00014602,2]
[354128458,1740264645183,-1627.62,0.00014602,2]
[354128459,1740264645193,-1580.41,0.00014602,2]
[354128460,1740264645202,-159.36,0.00014602,2]
[354128461,1740264645214,-12029.98,0.00014602,2]
[354128462,1740264645223,-1056.18,0.00014602,2]
[354128463,1740264645232,-3804.96,0.00014602,2]
[354128464,1740264645241,-610.09,0.00014602,2]
[354128465,1740264645250,-611.98,0.00014602,2]
[354128466,1740264645259,-500.0,0.00014602,2]
[354128467,1740264645268,-500.0,0.00014602,2]
[354128468,1740264645276,-500.0,0.00014684,2]
[354128469,1740264645285,-500.0,0.00014684,2]
[354128470,1740264645294,-713.37,0.00014684,2]
[354128471,1740264645304,-978.73,0.00014684,2]
[354128472,1740264645313,-1945.46,0.00014684,2]
[354128473,1740264645321,-952.28,0.00014684,2]
[354128474,1740264645330,-530.0,0.00014684,2]
[354128475,1740264645340,-500.0,0.00014684,2]
[354128476,1740264645349,-517.16,0.00014684,2]
[354128477,1740264645358,-500.0,0.00014684,2]
[354128478,1740264645366,-979.81,0.00014684,2]
[354128479,1740264645376,-500.0,0.00014684,2]
[354128480,1740264645385,-555.95,0.00014684,2]
[354128481,1740264645395,-4758.59,0.00014684,2]
[354128482,1740264645404,-500.0,0.00014684,2]
[354128483,1740264645414,-561.6,0.00014684,2]
[354128484,1740264645423,-1627.62,0.00014684,2]
[354128485,1740264645433,-1580.41,0.00014684,2]
[354128486,1740264645443,-12029.98,0.00014684,2]
[354128487,1740264645452,-1056.18,0.00014684,2]
[354128488,1740264645462,-3804.96,0.00014684,2]
[354128489,1740264645471,-610.09,0.00014684,2]
[354128490,1740264645481,-611.98,0.00014684,2]
[354128491,1740264645490,-500.0,0.00014684,2]
[354128492,1740264645499,-500.0,0.00014684,2]
[354128493,1740264645513,-151.0,0.000147,2]
[354128494,1740264645522,-500.0,0.00014767,2]
[354128495,1740264645532,-500.0,0.00014767,2]
[354128496,1740264645541,-713.37,0.00014767,2]
[354128497,1740264645551,-978.73,0.00014767,2]
[354128498,1740264645560,-1945.46,0.00014767,2]
[354128499,1740264645569,-952.28,0.00014767,2]
[354128500,1740264645579,-530.0,0.00014767,2]
[354128501,1740264645588,-425.44,0.00014767,2]
[354128502,1740264645598,-517.16,0.00014767,2]
[354128503,1740264645607,-500.0,0.00014767,2]
[354128504,1740264645616,-979.81,0.00014767,2]
[354128505,1740264645626,-500.0,0.00014767,2]
[354128506,1740264645636,-555.95,0.00014767,2]
[354128507,1740264645646,-4758.59,0.00014767,2]
[354128508,1740264645655,-500.0,0.00014767,2]
[354128509,1740264645664,-561.6,0.00014767,2]
[354128510,1740264645673,-1627.62,0.00014767,2]
[354128511,1740264645683,-1580.41,0.00014767,2]
[354128512,1740264645692,-12029.98,0.00014767,2]
[354128513,1740264645701,-1056.18,0.00014767,2]
[354128514,1740264645711,-3804.96,0.00014767,2]
[354128515,1740264645720,-610.09,0.00014767,2]
[354128516,1740264645729,-611.98,0.00014767,2]
[354128518,1740264645738,-286.44,0.00014767,2]
[354128519,1740264645747,-500.0,0.00014767,2]
[354128520,1740264645756,-500.0,0.00014849,2]
[354128521,1740264645765,-500.0,0.00014849,2]
[354128522,1740264645775,-713.37,0.00014849,2]
[354128523,1740264645784,-978.73,0.00014849,2]
[354128524,1740264645793,-1945.46,0.00014849,2]
[354128525,1740264645802,-952.28,0.00014849,2]
[354128526,1740264645812,-530.0,0.00014849,2]
[354128527,1740264645821,-517.16,0.00014849,2]
[354128528,1740264645831,-500.0,0.00014849,2]
[354128529,1740264645840,-979.81,0.00014849,2]
[354128530,1740264645849,-500.0,0.00014849,2]
[354128531,1740264645858,-555.95,0.00014849,2]
[354128532,1740264645867,-4758.59,0.00014849,2]
[354128533,1740264645877,-500.0,0.00014849,2]
[354128534,1740264645886,-561.6,0.00014849,2]
[354128535,1740264645896,-1627.62,0.00014849,2]
[354128536,1740264645906,-1580.41,0.00014849,2]
[354128537,1740264645916,-12029.98,0.00014849,2]
[354128538,1740264645925,-1056.18,0.00014849,2]
[354128539,1740264645935,-3804.96,0.00014849,2]
[354128540,1740264645945,-610.09,0.00014849,2]
[354128541,1740264645955,-611.98,0.00014849,2]
[354128542,1740264645965,-500.0,0.00014849,2]
[354128543,1740264645975,-416.07410336,0.000149,2]
[354128544,1740264645985,-500.0,0.00014931,2]
[354128545,1740264645995,-500.0,0.00014931,2]
[354128547,1740264646005,-713.37,0.00014931,2]
[354128549,1740264646016,-978.73,0.00014931,2]
[354128550,1740264646026,-1945.46,0.00014931,2]
[354128552,1740264646035,-952.28,0.00014931,2]
[354128553,1740264646045,-530.0,0.00014931,2]
[354128554,1740264646055,-517.16,0.00014931,2]
[354128555,1740264646065,-500.0,0.00014931,2]
[354128557,1740264646074,-979.81,0.00014931,2]
[354128558,1740264646083,-500.0,0.00014931,2]
[354128559,1740264646093,-555.95,0.00014931,2]
[354128560,1740264646167,-4758.59,0.00014931,2]
[354128561,1740264646176,-500.0,0.00014931,2]
[354128563,1740264646186,-561.6,0.00014931,2]
[354128565,1740264646195,-1627.62,0.00014931,2]
[354128566,1740264646205,-1580.41,0.00014931,2]
[354128568,1740264646214,-8852.62435826,0.00014931,2]
[354128570,1740264646296,-338.53233653,0.00014931,2]
[354128571,1740264646315,-2838.82330521,0.00014931,2]
[354128572,1740264646327,-1056.18,0.00014931,2]
[354128573,1740264646336,-3804.96,0.00014931,2]
[354128574,1740264646346,-610.09,0.00014931,2]
[354128575,1740264646355,-611.98,0.00014931,2]
[354128576,1740264646364,-500.0,0.00014931,2]
[354128577,1740264646373,-270.404,0.00014942,2]
[354128578,1740264646384,-576.82,0.00015013,2]
[354128579,1740264646393,-500.0,0.00015013,2]
[354128580,1740264646402,-713.37,0.00015013,2]
[354128581,1740264646412,-978.73,0.00015013,2]
[354128583,1740264646422,-1945.46,0.00015013,2]
[354128585,1740264646431,-952.28,0.00015013,2]
[354128587,1740264646441,-530.0,0.00015013,2]
[354128589,1740264646450,-517.16,0.00015013,2]
[354128591,1740264646459,-500.0,0.00015013,2]
[354128593,1740264646468,-979.81,0.00015013,2]
[354128594,1740264646478,-500.0,0.00015013,2]
[354128595,1740264646487,-555.95,0.00015013,2]
[354128596,1740264646496,-4758.59,0.00015013,2]
[354128597,1740264646509,-500.0,0.00015013,2]
[354128598,1740264646525,-561.6,0.00015013,2]
[354128599,1740264646541,-1627.62,0.00015013,2]
[354128600,1740264646552,-1580.41,0.00015013,2]
[354128601,1740264646561,-12029.98,0.00015013,2]
[354128602,1740264646571,-1056.18,0.00015013,2]
[354128603,1740264646582,-3804.96,0.00015013,2]
[354128604,1740264646593,-194.74808215,0.00015013,2]
[354128605,1740264646605,-415.34191785,0.00015013,2]
[354128606,1740264646615,-611.98,0.00015013,2]
[354128607,1740264646624,-336.29537995,0.00015013,2]
[354128608,1740264646782,-500.0,0.0001378,2]
[354128609,1740264646792,-291.88618055,0.00013863,2]
[354128610,1740264647016,-132.72305517,0.00013863,2]
[354128611,1740264647029,-75.39076428,0.00013863,2]
[354128612,1740264647038,-500.0,0.00013945,2]
[354128613,1740264647048,-163.70462005,0.00015013,2]
[354128614,1740264647058,-713.37,0.00015095,2]
[354128615,1740264647069,-978.73,0.00015095,2]
[354128616,1740264647079,-1945.46,0.00015095,2]
[354128617,1740264647089,-952.28,0.00015095,2]
[354128618,1740264647098,-530.0,0.00015095,2]
[354128619,1740264647108,-517.16,0.00015095,2]
[354128620,1740264647117,-500.0,0.00015095,2]
[354128621,1740264647126,-979.81,0.00015095,2]
[354128622,1740264647135,-500.0,0.00015095,2]
[354128623,1740264647144,-555.95,0.00015095,2]
[354128624,1740264647154,-4758.59,0.00015095,2]
[354128625,1740264647162,-500.0,0.00015095,2]
[354128626,1740264647171,-561.6,0.00015095,2]
[354128627,1740264647180,-1627.62,0.00015095,2]
[354128628,1740264647190,-1580.41,0.00015095,2]
[354128629,1740264647199,-12029.98,0.00015095,2]
[354128630,1740264647209,-1056.18,0.00015095,2]
[354128631,1740264647218,-3804.96,0.00015095,2]
[354128632,1740264647227,-610.09,0.00015095,2]
[354128633,1740264647236,-611.98,0.00015095,2]
[354128634,1740264647245,-500.0,0.00015095,2]
[354128635,1740264647255,-713.37,0.00015178,2]
[354128636,1740264647263,-978.73,0.00015178,2]
[354128637,1740264647273,-1945.46,0.00015178,2]
[354128638,1740264647281,-952.28,0.00015178,2]
[354128639,1740264647291,-530.0,0.00015178,2]
[354128640,1740264647300,-517.16,0.00015178,2]
[354128641,1740264647309,-500.0,0.00015178,2]
[354128642,1740264647318,-979.81,0.00015178,2]
[354128643,1740264647328,-500.0,0.00015178,2]
[354128644,1740264647337,-555.95,0.00015178,2]
[354128645,1740264647347,-4758.59,0.00015178,2]
[354128646,1740264647356,-500.0,0.00015178,2]
[354128647,1740264647365,-561.6,0.00015178,2]
[354128648,1740264647375,-1627.62,0.00015178,2]
[354128649,1740264647384,-1580.41,0.00015178,2]
[354128650,1740264647394,-12029.98,0.00015178,2]
[354128651,1740264647403,-1056.18,0.00015178,2]
[354128652,1740264647413,-3804.96,0.00015178,2]
[354128653,1740264647423,-610.09,0.00015178,2]
[354128654,1740264647433,-611.98,0.00015178,2]
[354128655,1740264647443,-500.0,0.00015178,2]
[354128656,1740264647453,-713.37,0.0001526,2]
[354128657,1740264647463,-978.73,0.0001526,2]
[354128658,1740264647472,-1945.46,0.0001526,2]
[354128659,1740264647482,-952.28,0.0001526,2]
[354128660,1740264647492,-530.0,0.0001526,2]
[354128661,1740264647501,-517.16,0.0001526,2]
[354128662,1740264647514,-323.12,0.0001526,2]
[354128663,1740264647523,-979.81,0.0001526,2]
[354128664,1740264647598,-457.92,0.0001526,2]
[354128665,1740264647608,-555.95,0.0001526,2]
[354128666,1740264647618,-4758.59,0.0001526,2]
[354128667,1740264647627,-500.0,0.0001526,2]
[354128668,1740264647637,-561.6,0.0001526,2]
[354128669,1740264647647,-1627.62,0.0001526,2]
[354128670,1740264647656,-1580.41,0.0001526,2]
[354128671,1740264647666,-12029.98,0.0001526,2]
[354128672,1740264647675,-1056.18,0.0001526,2]
[354128673,1740264647684,-3804.96,0.0001526,2]
[354128674,1740264647694,-610.09,0.0001526,2]
[354128675,1740264647703,-611.98,0.0001526,2]
[354128676,1740264647713,-500.0,0.0001526,2]
[354128677,1740264647722,-1500.0,0.00015322,2]
[354128678,1740264647732,-713.37,0.00015342,2]
[354128679,1740264647741,-978.73,0.00015342,2]
[354128680,1740264647751,-1945.46,0.00015342,2]
[354128681,1740264647760,-952.28,0.00015342,2]
[354128682,1740264647770,-530.0,0.00015342,2]
[354128683,1740264647779,-517.16,0.00015342,2]
[354128684,1740264647788,-979.81,0.00015342,2]
[354128685,1740264647797,-555.95,0.00015342,2]
[354128686,1740264647806,-4758.59,0.00015342,2]
[354128687,1740264647815,-500.0,0.00015342,2]
[354128688,1740264647825,-561.6,0.00015342,2]
[354128689,1740264647834,-1627.62,0.00015342,2]
[354128690,1740264647843,-1580.41,0.00015342,2]